bitfinex/quotes_BTCUSD_20230117
["timestamp","ask_amount","ask_price","bid_price","bid_amount"]
[1673990430791,0.320894,21332.0,21329.0,1.14171079]
[1673990431089,0.320894,21331.0,21329.0,1.16471079]
[1673990431313,1.04706295,21333.0,21329.0,0.946176]
[1673990431580,0.95006295,21333.0,21330.0,0.022]
[1673990431780,0.320894,21332.0,21329.0,0.946176]
[1673990432056,0.320894,21331.0,21329.0,0.969176]
[1673990432316,0.468779,21332.0,21329.0,0.65267199]
[1673990432572,0.468779,21332.0,21329.0,0.67567199]
[1673990433097,0.01651595,21333.0,21329.0,1.14451699]
[1673990433365,0.01651595,21333.0,21330.0,0.00925151]
[1673990433629,0.01651595,21333.0,21330.0,0.47807051]
[1673990433903,0.48527495,21333.0,21330.0,0.62002297]
[1673990434206,0.007,21332.0,21330.0,0.47807051]
[1673990434421,0.47827495,21333.0,21330.0,0.47807051]
[1673990434719,0.320894,21332.0,21330.0,0.50007051]
[1673990435003,0.320894,21331.0,21330.0,0.03125151]
[1673990435235,0.320894,21331.0,21330.0,0.00925151]
[1673990435726,0.003,21332.0,21330.0,0.03125151]
[1673990436240,0.323894,21331.0,21330.0,0.03125151]
[1673990436752,0.003,21331.0,21330.0,0.03125151]
[1673990437242,0.47829395,21333.0,21330.0,0.00925151]
[1673990437496,0.4003318,21332.0,21330.0,0.03125151]
[1673990437748,0.4003318,21332.0,21330.0,0.00925151]
[1673990437749,0.789695,21331.0,21330.0,0.00925151]
[1673990438006,1.261496,21331.0,21330.0,0.03125151]
[1673990438260,1.258496,21331.0,21330.0,0.00925151]
[1673990438514,1.258496,21331.0,21330.0,0.01100651]
[1673990438785,1.258496,21331.0,21330.0,0.00900651]
[1673990439549,1.327496,21331.0,21330.0,0.01100651]
[1673990440904,0.937602,21331.0,21330.0,0.00900651]
[1673990441171,1.258496,21331.0,21330.0,0.00900651]
[1673990441434,1.327496,21331.0,21330.0,0.01100651]
[1673990443448,1.327496,21331.0,21327.0,0.65401174]
[1673990443704,1.106602,21331.0,21328.0,0.14190111]
[1673990443966,1.006602,21331.0,21328.0,0.14190111]
[1673990444213,0.937602,21331.0,21328.0,0.14190111]
[1673990444714,1.007602,21331.0,21328.0,0.14190111]
[1673990444967,0.320894,21330.0,21328.0,0.14190111]
[1673990445215,0.468828,21330.0,21328.0,0.14390111]
[1673990446005,0.87150425,21330.0,21326.0,0.59653585]
[1673990446254,0.87150425,21330.0,21328.0,0.002]
[1673990446255,0.320894,21329.0,21328.0,0.002]
[1673990446554,0.789739,21329.0,21328.0,0.002]
[1673990446772,1.258584,21329.0,21328.0,0.002]
[1673990447048,1.258584,21329.0,21325.0,0.937838]
[1673990447293,1.258584,21329.0,21326.0,0.002]
[1673990447294,1.29069019,21329.0,21326.0,0.002]
[1673990447558,0.320894,21328.0,21325.0,0.46892]
[1673990447825,0.320894,21327.0,21325.0,0.46892]
[1673990448073,0.46887,21328.0,21325.0,0.46892]
[1673990448363,0.46887,21328.0,21326.0,0.02]
[1673990448590,0.46887,21328.0,21325.0,0.46892]
[1673990448845,0.327894,21327.0,21325.0,0.48992]
[1673990449096,0.320894,21326.0,21325.0,0.46892]
[1673990449369,0.47187,21328.0,21326.0,0.02]
[1673990449873,0.320894,21327.0,21326.0,0.02]
[1673990450412,0.46887,21328.0,21325.0,0.58972902]
[1673990450634,0.327894,21327.0,21325.0,0.58972902]
[1673990450938,0.46887,21328.0,21325.0,0.58972902]
[1673990451144,0.320894,21327.0,21325.0,0.58972902]
[1673990451389,0.46887,21328.0,21325.0,0.58972902]
[1673990451646,0.47587,21328.0,21325.0,0.58972902]
[1673990451901,0.46887,21328.0,21325.0,0.58963933]
[1673990452161,0.46887,21328.0,21325.0,0.61063933]
[1673990452162,0.320894,21327.0,21325.0,0.61063933]
[1673990452424,0.320894,21326.0,21325.0,0.58963933]
[1673990452679,0.320894,21326.0,21325.0,0.0085]
[1673990452955,0.937762,21328.0,21325.0,0.0085]
[1673990453480,0.320894,21327.0,21325.0,0.0085]
[1673990453731,0.320894,21326.0,21325.0,0.0085]
[1673990453997,0.420894,21326.0,21324.0,0.1133911]
[1673990454304,0.937822,21326.0,21325.0,0.021]
[1673990454549,1.258716,21326.0,21324.0,0.00108208]
[1673990454775,1.39716595,21326.0,21324.0,0.00108208]
[1673990455070,0.320894,21325.0,21324.0,0.00308208]
[1673990455336,1.25876,21325.0,21324.0,0.00108208]
[1673990455604,1.25876,21325.0,21324.0,0.00308208]
[1673990455852,1.25876,21325.0,21324.0,0.00108208]
[1673990456152,1.25876,21325.0,21324.0,0.00308208]
[1673990456365,1.32876,21325.0,21324.0,0.00308208]
[1673990457133,1.88256918,21325.0,21324.0,0.00308208]
[1673990457444,1.40366,21325.0,21324.0,0.00308208]
[1673990458172,1.73269422,21325.0,21324.0,0.00308208]
[1673990458418,1.88269422,21325.0,21324.0,0.00308208]
[1673990458687,1.55366,21325.0,21324.0,0.00308208]
[1673990458919,1.40366,21325.0,21324.0,0.00308208]
[1673990459952,1.48394861,21325.0,21324.0,0.00308208]
[1673990460215,1.40366,21325.0,21324.0,0.00308208]
[1673990462784,1.55366,21325.0,21324.0,0.00308208]
[1673990463535,1.40366,21325.0,21324.0,0.00308208]
[1673990464542,1.55366,21325.0,21324.0,0.00308208]
[1673990464788,1.47876,21325.0,21324.0,0.00308208]
[1673990465038,1.8622125,21325.0,21324.0,0.00308208]
[1673990466638,1.32876,21325.0,21324.0,0.00308208]
[1673990467697,1.47876,21325.0,21324.0,0.00308208]
[1673990470519,1.32876,21325.0,21324.0,0.00308208]
[1673990470766,0.390894,21325.0,21324.0,0.19380803]
[1673990471039,0.07,21325.0,21324.0,0.10302208]
[1673990471290,0.07,21325.0,21324.0,0.58950879]
[1673990471576,0.07,21325.0,21324.0,0.48956879]
[1673990471796,0.07,21325.0,21324.0,0.00308208]
[1673990472547,0.390894,21325.0,21324.0,0.00308208]
[1673990472805,0.07,21325.0,21324.0,0.00308208]
[1673990473310,1.007866,21325.0,21324.0,0.00308208]
[1673990473590,1.32876,21325.0,21324.0,0.00308208]
[1673990476174,1.62905878,21325.0,21324.0,0.00308208]
[1673990476709,1.32876,21325.0,21324.0,0.00308208]
[1673990477181,1.47876,21325.0,21324.0,0.00308208]
[1673990477961,1.80820366,21325.0,21324.0,0.00308208]
[1673990478748,1.80820366,21325.0,21324.0,0.00300256]
[1673990479498,1.32876,21325.0,21324.0,0.00300256]
[1673990482446,1.32876,21325.0,21324.0,0.00300256]
[1673990484025,1.32876,21325.0,21324.0,0.002]
[1673990485647,0.859827,21325.0,21324.0,0.002]
[1673990486177,0.538933,21325.0,21324.0,0.002]
[1673990487441,0.859827,21325.0,21324.0,0.002]
[1673990488721,0.07,21325.0,21324.0,0.002]
[1673990488966,0.07,21325.0,21324.0,0.11757343]
[1673990489768,0.07,21325.0,21324.0,0.002]
[1673990491023,1.007866,21325.0,21324.0,0.002]
[1673990491274,1.32876,21325.0,21324.0,0.002]
[1673990497227,0.390894,21325.0,21324.0,0.002]
[1673990497479,0.07,21325.0,21324.0,0.10194]
[1673990497773,0.07,21325.0,21324.0,0.14176454]
[1673990498040,0.07,21325.0,21324.0,1.28806065]
[1673990498303,0.07,21325.0,21324.0,1.88033637]
[1673990498556,0.07,21325.0,21324.0,1.90895465]
[1673990498813,0.07,21325.0,21324.0,2.34921569]
[1673990499082,0.07,21325.0,21324.0,2.70544343]
[1673990499367,0.07,21325.0,21324.0,2.70544486]
[1673990499608,0.07,21325.0,21324.0,2.81775411]
[1673990499855,0.07,21325.0,21324.0,2.70548079]
[1673990500121,0.07,21325.0,21324.0,2.70547519]
[1673990500426,0.07,21325.0,21324.0,2.60110955]
[1673990500679,0.06993117,21325.0,21324.0,2.70543077]
[1673990500969,0.0009724,21329.0,21324.0,2.70343077]
[1673990501224,0.006,21325.0,21324.0,2.14017178]
[1673990501488,0.0009724,21329.0,21325.0,0.15]
[1673990501777,0.0009724,21329.0,21327.0,0.15]
[1673990502027,0.0009724,21329.0,21328.0,0.395727]
[1673990502330,0.006,21329.0,21328.0,1.82067201]
[1673990502599,0.47828795,21333.0,21328.0,1.82067201]
[1673990502600,0.0009823,21332.0,21328.0,1.82067201]
[1673990502861,0.00568143,21329.0,21328.0,1.61567096]
[1673990503290,0.0009823,21332.0,21328.0,1.49964501]
[1673990503292,0.0009823,21332.0,21328.0,1.19964501]
[1673990503549,0.0009823,21332.0,21328.0,1.20315995]
[1673990504088,0.0009823,21332.0,21329.0,0.3]
[1673990504356,0.0009823,21332.0,21329.0,1.2560126]
[1673990504617,0.0009823,21332.0,21329.0,1.49733515]
[1673990505188,0.0649823,21332.0,21329.0,1.49733515]
[1673990505719,0.1289823,21332.0,21329.0,1.50033515]
[1673990506019,0.0009823,21332.0,21329.0,1.49733515]
[1673990506785,0.0589823,21332.0,21329.0,1.50033515]
[1673990507082,0.0589823,21332.0,21330.0,0.0759709]
[1673990507083,0.0009823,21332.0,21330.0,0.0759709]
[1673990507354,0.0039823,21332.0,21330.0,0.0759709]
[1673990507865,0.003,21332.0,21330.0,0.0759709]
[1673990508125,0.94705595,21333.0,21330.0,0.0759709]
[1673990508419,0.058,21332.0,21331.0,0.13319895]
[1673990509214,0.058,21332.0,21330.0,0.0789709]
[1673990509215,0.526779,21332.0,21330.0,0.003]
[1673990509489,0.320894,21331.0,21330.0,0.003]
[1673990509804,0.526779,21332.0,21330.0,0.003]
[1673990510018,0.468779,21332.0,21329.0,0.4871786]
[1673990510273,0.468779,21332.0,21330.0,0.003]
[1673990510491,0.468779,21332.0,21329.0,0.66413396]
[1673990510728,0.058,21331.0,21330.0,0.003]
[1673990510952,0.468779,21332.0,21329.0,0.66413396]
[1673990511221,0.468779,21332.0,21329.0,0.66713396]
[1673990511222,0.532779,21332.0,21329.0,0.66713396]
[1673990511485,0.468779,21332.0,21329.0,0.66413396]
[1673990511742,0.468779,21332.0,21330.0,0.003]
[1673990512006,0.468779,21332.0,21329.0,0.66413396]
[1673990512279,0.468779,21332.0,21330.0,0.1210701]
[1673990512756,0.47828895,21333.0,21329.0,0.4871786]
[1673990513006,0.47828895,21333.0,21329.0,1.14673555]
[1673990513305,0.47828895,21333.0,21329.0,1.14973555]
[1673990513306,0.064,21332.0,21329.0,1.14973555]
[1673990513639,0.47828695,21333.0,21329.0,0.4871786]
[1673990513814,0.47828695,21333.0,21329.0,0.4901786]
[1673990513815,0.468781,21332.0,21329.0,0.4901786]
[1673990514077,0.468781,21332.0,21329.0,0.65728356]
[1673990514389,0.471781,21332.0,21329.0,0.67528356]
[1673990514654,0.468781,21332.0,21329.0,0.65728356]
[1673990514906,0.532781,21332.0,21329.0,0.66028356]
[1673990515129,0.468781,21332.0,21330.0,0.12038296]
[1673990515385,0.471781,21332.0,21330.0,0.12038296]
[1673990516181,0.320894,21331.0,21329.0,0.5051786]
[1673990516479,0.320894,21331.0,21326.0,0.468903]
[1673990516480,1.25854,21330.0,21326.0,0.468903]
[1673990516741,0.468823,21330.0,21329.0,0.003]
[1673990517004,0.789717,21330.0,21326.0,0.937814]
[1673990517270,0.568823,21330.0,21329.0,0.018]
[1673990517552,0.468823,21330.0,21327.0,0.14266326]
[1673990517832,0.474823,21330.0,21327.0,0.61155026]
[1673990518094,0.92273971,21332.0,21328.0,0.0742]
[1673990518095,0.46976966,21332.0,21328.0,0.0742]
[1673990518349,0.46976966,21332.0,21329.0,0.40139381]
[1673990518350,0.058,21330.0,21329.0,0.40139381]
[1673990518619,0.058,21330.0,21329.0,1.14834886]
[1673990519093,0.058,21330.0,21329.0,1.76924286]
[1673990519363,0.00097566,21332.0,21329.0,1.77774286]
[1673990519617,0.00097566,21332.0,21329.0,1.45684886]
[1673990519866,0.00097566,21332.0,21330.0,0.3]
[1673990520127,0.00097566,21332.0,21330.0,1.237625]
[1673990520399,0.00951595,21333.0,21330.0,1.237625]
[1673990520644,0.006,21332.0,21330.0,1.2529289]
[1673990520904,0.00951595,21333.0,21331.0,0.18122559]
[1673990521437,0.00951595,21333.0,21331.0,0.44685154]
[1673990521679,0.00951595,21333.0,21332.0,0.703994]
[1673990521941,0.00951595,21333.0,21332.0,1.172773]
[1673990522193,0.06751595,21333.0,21332.0,1.172773]
[1673990522452,0.00951595,21333.0,21332.0,1.641552]
[1673990522714,0.06751595,21333.0,21332.0,1.641552]
[1673990522974,0.00951595,21333.0,21332.0,1.89788559]
[1673990523233,0.00951595,21333.0,21332.0,1.90088559]
[1673990523234,0.07351595,21333.0,21332.0,1.90088559]
[1673990523484,0.00951595,21333.0,21332.0,1.89788559]
[1673990523764,0.01551595,21333.0,21332.0,1.92488559]
[1673990524066,0.00951595,21333.0,21332.0,1.91960606]
[1673990524328,0.00951595,21333.0,21332.0,1.94660606]
[1673990524329,0.01551595,21333.0,21332.0,1.94660606]
[1673990525335,0.00951595,21333.0,21332.0,1.91960606]
[1673990525583,0.01551595,21333.0,21332.0,2.17090606]
[1673990529485,0.01551595,21333.0,21332.0,2.03004733]
[1673990529750,0.01551595,21333.0,21332.0,1.95574733]
[1673990533319,0.01551595,21333.0,21332.0,1.95620355]
[1673990533833,0.01539867,21333.0,21332.0,1.95620355]
[1673990534380,0.01539867,21333.0,21332.0,2.47672997]
[1673990534658,0.01385881,21333.0,21332.0,3.38100105]
[1673990534912,0.01385881,21333.0,21332.0,2.78605439]
[1673990535166,0.01385881,21333.0,21332.0,2.70483429]
[1673990535428,0.01385881,21333.0,21332.0,3.15096071]
[1673990535714,0.01385881,21333.0,21332.0,3.21622703]
[1673990536231,0.01385881,21333.0,21332.0,2.65780524]
[1673990536478,0.01385881,21333.0,21332.0,2.77010061]
[1673990537012,0.01385881,21333.0,21332.0,3.19674431]
[1673990537264,0.01385881,21333.0,21332.0,3.64289248]
[1673990537518,0.01385881,21333.0,21332.0,4.29279355]
[1673990537769,0.01385881,21333.0,21332.0,4.31291414]
[1673990538026,0.01385881,21333.0,21332.0,4.2472815]
[1673990538289,0.01385881,21333.0,21332.0,2.51519099]
[1673990538798,0.01385881,21333.0,21332.0,2.25323441]
[1673990539050,0.01385881,21333.0,21332.0,1.64610367]
[1673990540361,0.01385881,21333.0,21332.0,1.65460367]
[1673990540891,0.01385881,21333.0,21332.0,1.95460367]
[1673990546344,0.01385881,21333.0,21332.0,1.63370967]
[1673990547389,0.11385881,21333.0,21332.0,0.03614127]
[1673990547676,0.33475281,21333.0,21332.0,0.03614127]
[1673990548199,0.33475281,21333.0,21332.0,0.50492027]
[1673990548460,0.01385881,21333.0,21332.0,0.50492027]
[1673990548742,0.01385881,21333.0,21332.0,0.915131]
[1673990551843,0.01385881,21333.0,21332.0,0.615131]
[1673990552675,0.01385881,21333.0,21332.0,0.03614127]
[1673990552884,0.01385881,21333.0,21332.0,0.50492027]
[1673990553135,0.01385881,21333.0,21332.0,0.80492027]
[1673990553926,0.01385881,21333.0,21332.0,0.03614127]
[1673990556278,0.01375415,21333.0,21332.0,0.03614127]
[1673990556556,0.01375415,21333.0,21332.0,0.1631995]
[1673990556808,0.01375415,21333.0,21332.0,0.4631995]
[1673990557883,0.01375415,21333.0,21332.0,0.03614127]
[1673990559957,0.33464815,21333.0,21332.0,0.03614127]
[1673990560236,0.01375415,21333.0,21332.0,0.03614127]
[1673990560507,0.01375415,21333.0,21332.0,0.33614127]
[1673990561749,0.01375415,21333.0,21332.0,0.03614127]
[1673990562528,0.01375415,21333.0,21332.0,1.09081558]
[1673990562785,0.01375415,21333.0,21332.0,1.98407582]
[1673990563053,0.01375415,21333.0,21332.0,2.57392693]
[1673990563373,0.01375415,21333.0,21332.0,2.46197035]
[1673990563582,0.01375415,21333.0,21332.0,2.5742516]
[1673990563845,0.01375415,21333.0,21332.0,2.57425139]
[1673990564069,0.01375415,21333.0,21332.0,2.57425207]
[1673990564544,0.01375415,21333.0,21332.0,2.57425286]
[1673990564827,0.01375415,21333.0,21332.0,2.47634723]
[1673990565090,0.01375415,21333.0,21332.0,2.57425211]
[1673990565352,0.01375415,21333.0,21332.0,2.57425377]
[1673990565717,0.01375415,21333.0,21332.0,2.57425445]
[1673990566375,0.01375415,21333.0,21332.0,2.46197154]
[1673990566905,0.01375415,21333.0,21332.0,2.57425753]
[1673990567410,0.01375415,21333.0,21332.0,1.26842399]
[1673990567673,0.01375415,21333.0,21332.0,1.156138]
[1673990568727,0.01375415,21333.0,21332.0,1.456138]
[1673990570018,0.01375415,21333.0,21332.0,1.156138]
[1673990571080,0.01375415,21333.0,21332.0,1.456138]
[1673990576122,0.01375415,21333.0,21332.0,1.45659422]
[1673990576389,0.01375415,21333.0,21332.0,1.15659422]
[1673990577919,0.01375415,21333.0,21332.0,1.97599711]
[1673990578432,0.01375415,21333.0,21332.0,2.14444016]
[1673990578790,0.01375415,21333.0,21332.0,2.45024684]
[1673990579038,0.01375415,21333.0,21332.0,2.67486511]
[1673990579544,0.01375415,21333.0,21332.0,2.50642206]
[1673990579814,0.01375415,21333.0,21332.0,2.7871949]
[1673990580337,0.01368379,21333.0,21332.0,2.56257663]
[1673990580874,0.01368379,21333.0,21332.0,2.71257663]
[1673990581427,0.01368379,21333.0,21332.0,2.78747663]
[1673990581662,0.01368379,21333.0,21332.0,2.98390548]
[1673990585023,0.01368379,21333.0,21332.0,3.16888899]
[1673990585279,0.01368379,21333.0,21332.0,3.95194281]
[1673990586801,0.01368379,21333.0,21332.0,4.07347186]
[1673990586809,0.00952414,21333.0,21332.0,4.21207041]
[1673990587056,0.00952414,21333.0,21332.0,5.36391386]
[1673990587569,0.00952414,21333.0,21332.0,5.55464361]
[1673990587893,0.00352414,21333.0,21332.0,4.83941949]
[1673990588144,0.00352414,21333.0,21332.0,4.35027151]
[1673990588442,0.00352414,21333.0,21332.0,4.48927151]
[1673990588702,0.00352414,21333.0,21332.0,4.46990601]
[1673990588968,0.00352414,21333.0,21332.0,4.95412919]
[1673990589236,0.00352414,21333.0,21332.0,5.46731454]
[1673990589517,0.00352414,21333.0,21332.0,5.47065831]
[1673990589776,0.00352414,21333.0,21332.0,4.95412919]
[1673990590030,0.00980944,21334.0,21333.0,0.4346]
[1673990590297,0.00980944,21334.0,21333.0,4.40880787]
[1673990590577,0.00980944,21334.0,21333.0,3.72620864]
[1673990591086,0.00980944,21334.0,21333.0,4.1704609]
[1673990591350,0.00980944,21334.0,21333.0,3.72433448]
[1673990591625,0.00980944,21334.0,21333.0,4.2574609]
[1673990592129,0.00980944,21334.0,21333.0,3.9728609]
[1673990592411,0.00951595,21336.0,21334.0,0.15464949]
[1673990592680,0.00951595,21336.0,21335.0,4.09161074]
[1673990592957,0.01105896,21338.0,21336.0,0.15950905]
[1673990593214,0.01105896,21338.0,21337.0,3.64451568]
[1673990593215,0.01009941,21338.0,21337.0,3.64451568]
[1673990593470,0.01009941,21338.0,21337.0,3.94451568]
[1673990593733,0.01009941,21338.0,21337.0,3.64174398]
[1673990594006,0.01009941,21338.0,21337.0,4.3837389]
[1673990594272,0.01009941,21338.0,21337.0,4.03381253]
[1673990594837,0.01009941,21338.0,21337.0,2.87450672]
[1673990595106,0.01009941,21338.0,21337.0,2.76252841]
[1673990595645,0.01009941,21338.0,21337.0,1.74175772]
[1673990596089,0.01009941,21338.0,21337.0,1.64986172]
[1673990596091,0.01009941,21338.0,21337.0,1.406007]
[1673990596356,0.01009941,21338.0,21337.0,1.498007]
[1673990596606,0.01009941,21338.0,21337.0,1.40646311]
[1673990596862,0.01009941,21338.0,21337.0,1.49946311]
[1673990597148,0.01009941,21338.0,21337.0,1.68489359]
[1673990597641,0.01009941,21338.0,21337.0,1.99339359]
[1673990597918,0.01009941,21338.0,21337.0,2.00866373]
[1673990598159,0.01009941,21338.0,21337.0,2.32955773]
[1673990598935,0.01009941,21338.0,21337.0,2.23655773]
[1673990599189,0.01009941,21338.0,21337.0,2.32955773]
[1673990599442,0.01009941,21338.0,21337.0,2.23655773]
[1673990599725,0.01009941,21338.0,21337.0,2.32955773]
[1673990601367,0.01009941,21338.0,21337.0,2.34007088]
[1673990601623,0.01009941,21338.0,21337.0,2.01917688]
[1673990603747,0.01009941,21338.0,21337.0,2.34007088]
[1673990604755,0.01009941,21338.0,21337.0,2.01917688]
[1673990605530,0.01009941,21338.0,21337.0,1.92617688]
[1673990605785,0.01009941,21338.0,21337.0,2.01917688]
[1673990607841,0.01009941,21338.0,21337.0,1.92617688]
[1673990608108,0.01009941,21338.0,21337.0,2.01917688]
[1673990608352,0.01009941,21338.0,21337.0,2.34007088]
[1673990608904,0.01009941,21338.0,21337.0,2.24707088]
[1673990609157,0.01009941,21338.0,21337.0,2.24007088]
[1673990609401,0.01009941,21338.0,21337.0,2.14707088]
[1673990609677,0.01009941,21338.0,21337.0,2.24007088]
[1673990609917,0.01009941,21338.0,21337.0,2.14707088]
[1673990610442,0.01009941,21338.0,21337.0,2.14661477]
[1673990610705,0.01009941,21338.0,21337.0,1.64029029]
[1673990610953,0.01009941,21338.0,21337.0,0.01901315]
[1673990611208,0.01009941,21338.0,21337.0,0.11201315]
[1673990611573,0.33099341,21338.0,21337.0,0.01051315]
[1673990611721,0.33099341,21338.0,21335.0,0.30525751]
[1673990611987,0.320894,21337.0,21335.0,0.30525751]
[1673990612230,0.47874741,21338.0,21335.0,0.30525751]
[1673990612231,0.320894,21336.0,21335.0,0.30525751]
[1673990612730,0.47874741,21338.0,21335.0,0.30525751]
[1673990612983,0.320894,21337.0,21335.0,0.30525751]
[1673990613244,0.328894,21336.0,21335.0,0.31125751]
[1673990613499,0.328894,21336.0,21335.0,0.31975751]
[1673990613753,0.008,21336.0,21335.0,0.31975751]
[1673990614012,0.008,21336.0,21335.0,0.0145]
[1673990614282,0.328894,21336.0,21335.0,0.0145]
[1673990614541,0.320894,21336.0,21335.0,0.0085]
[1673990614794,0.468671,21337.0,21335.0,0.0085]
[1673990615071,0.468671,21337.0,21336.0,0.0085]
[1673990615347,0.789565,21337.0,21336.0,0.0085]
[1673990615613,0.789565,21337.0,21335.0,0.0145]
[1673990615614,0.008,21336.0,21335.0,0.0145]
[1673990615869,0.320894,21336.0,21335.0,0.0085]
[1673990617462,0.329894,21336.0,21335.0,0.0135]
[1673990617721,0.47876741,21338.0,21335.0,0.14648761]
[1673990618195,0.47876741,21338.0,21335.0,0.14748761]
[1673990618196,0.085,21336.0,21335.0,0.14748761]
[1673990618454,0.405894,21336.0,21335.0,0.14748761]
[1673990618712,0.47876741,21338.0,21335.0,0.14748761]
[1673990618713,0.94742641,21338.0,21335.0,0.0085]
[1673990618973,0.320894,21337.0,21335.0,0.0095]
[1673990619286,0.320894,21336.0,21335.0,0.0085]
[1673990619482,0.405894,21336.0,21335.0,0.0095]
[1673990620280,0.320894,21336.0,21335.0,0.0085]
[1673990620526,0.320894,21336.0,21335.0,0.0095]
[1673990620782,0.320894,21336.0,21335.0,0.0085]
[1673990621041,0.405894,21336.0,21335.0,0.0095]
[1673990621296,0.320894,21336.0,21335.0,0.0085]
[1673990621557,0.405894,21336.0,21335.0,0.0095]
[1673990622072,0.085,21336.0,21335.0,0.0095]
[1673990622335,0.405894,21336.0,21335.0,0.0095]
[1673990622592,0.405894,21336.0,21335.0,0.478213]
[1673990622865,0.085,21336.0,21335.0,0.778213]
[1673990623166,0.085,21336.0,21335.0,1.49642754]
[1673990623901,0.085,21336.0,21335.0,1.26467411]
[1673990627883,0.085,21336.0,21335.0,0.96467411]
[1673990628166,0.085,21336.0,21335.0,1.26467411]
[1673990630127,0.085,21336.0,21335.0,0.96467411]
[1673990630603,0.085,21336.0,21335.0,0.49596111]
[1673990631119,0.405894,21336.0,21335.0,0.49596111]
[1673990632147,0.405894,21336.0,21335.0,0.02724811]
[1673990633431,0.085,21336.0,21335.0,0.1822556]
[1673990633681,0.085,21336.0,21335.0,0.79596111]
[1673990633940,0.085,21336.0,21335.0,1.37665242]
[1673990634198,0.085,21336.0,21335.0,2.32258845]
[1673990634467,0.07650001,21336.0,21335.0,2.89291849]
[1673990634711,0.07650001,21336.0,21335.0,3.36163149]
[1673990635235,0.07650001,21336.0,21335.0,3.08150264]
[1673990635507,0.07650001,21336.0,21335.0,3.36200203]
[1673990635774,0.07650001,21336.0,21335.0,3.08150264]
[1673990636285,0.01009941,21338.0,21335.0,3.08050264]
[1673990636539,0.01009941,21338.0,21337.0,0.3546927]
[1673990636798,0.01009941,21338.0,21337.0,2.86518154]
[1673990637136,0.01009941,21338.0,21337.0,2.88204967]
[1673990637315,0.01009941,21338.0,21337.0,3.25644383]
[1673990637564,0.01009941,21338.0,21337.0,3.10644383]
[1673990637839,0.01709941,21338.0,21337.0,3.10644383]
[1673990638100,0.01009941,21338.0,21337.0,2.76982759]
[1673990638381,0.01709941,21338.0,21337.0,2.90300825]
[1673990638592,0.01709941,21338.0,21337.0,2.79082759]
[1673990639885,0.01709941,21338.0,21337.0,2.90300464]
[1673990640183,0.01709941,21338.0,21337.0,2.79082759]
[1673990640411,0.01709941,21338.0,21337.0,3.01522175]
[1673990641455,0.01709941,21338.0,21337.0,2.84695113]
[1673990641946,0.01709941,21338.0,21337.0,3.32415282]
[1673990642278,0.01709941,21338.0,21337.0,3.60464552]
[1673990642445,0.01709941,21338.0,21337.0,3.49242676]
[1673990642964,0.01709941,21338.0,21337.0,3.32415282]
[1673990643215,0.01709941,21338.0,21337.0,3.49242676]
[1673990643732,0.01709941,21338.0,21337.0,3.49242659]
[1673990643988,0.01709941,21338.0,21337.0,3.4924267]
[1673990645006,0.01709941,21338.0,21337.0,3.60464552]
[1673990645288,0.01709941,21338.0,21337.0,3.38025136]
[1673990645530,0.01099742,21338.0,21337.0,4.29982584]
[1673990645807,0.01047388,21339.0,21338.0,0.10603258]
[1673990646074,0.01047388,21339.0,21338.0,3.06529904]
[1673990646331,0.01047388,21339.0,21338.0,3.07121512]
[1673990646632,0.01047388,21339.0,21338.0,2.77135891]
[1673990646872,0.01047388,21339.0,21338.0,2.62801116]
[1673990647124,0.01047388,21339.0,21338.0,2.53501116]
[1673990647394,0.01047388,21339.0,21338.0,2.62701116]
[1673990647643,0.01047388,21339.0,21338.0,2.81519997]
[1673990647904,0.01047388,21339.0,21338.0,2.90819997]
[1673990648170,0.01047388,21339.0,21338.0,3.13227359]
[1673990648427,0.01047388,21339.0,21338.0,3.20687359]
[1673990648746,0.01047388,21339.0,21338.0,2.96702255]
[1673990649510,0.01047388,21339.0,21338.0,2.96702346]
[1673990651273,0.01047388,21339.0,21338.0,2.76197032]
[1673990651523,0.01047388,21339.0,21338.0,2.74294984]
[1673990651777,0.01047388,21339.0,21338.0,2.85497044]
[1673990653023,0.01047388,21339.0,21338.0,2.21179029]
[1673990653499,0.01047388,21339.0,21338.0,2.02795629]
[1673990654860,0.01047388,21339.0,21338.0,2.34885029]
[1673990655071,0.01047388,21339.0,21338.0,2.49885029]
[1673990655591,0.01047388,21339.0,21338.0,2.34885029]
[1673990655846,0.01047388,21339.0,21338.0,2.66614374]
[1673990656092,0.01047388,21339.0,21338.0,2.34885029]
[1673990656602,0.01047388,21339.0,21338.0,2.02795629]
[1673990657102,0.01047388,21339.0,21338.0,2.34885029]
[1673990658129,0.01047388,21339.0,21338.0,2.49885029]
[1673990658600,0.01047388,21339.0,21338.0,2.6669106]
[1673990658851,0.01047388,21339.0,21338.0,2.7418106]
[1673990659111,0.01047388,21339.0,21338.0,3.21905956]
[1673990659370,0.0094265,21339.0,21338.0,3.10703896]
[1673990659598,0.0094265,21339.0,21338.0,3.33111258]
[1673990660852,0.0094265,21339.0,21338.0,3.10703896]
[1673990662075,0.0094265,21339.0,21338.0,3.33111258]
[1673990663629,0.0094265,21339.0,21338.0,3.16305227]
[1673990664674,0.0094265,21339.0,21338.0,3.18109768]
[1673990665512,0.0094265,21339.0,21338.0,2.95702406]
[1673990665772,0.0094265,21339.0,21338.0,3.18109768]
[1673990666543,0.0094265,21339.0,21338.0,3.33109768]
[1673990666802,0.0094265,21339.0,21338.0,3.16305227]
[1673990667053,0.0094265,21339.0,21338.0,3.44324108]
[1673990668217,0.0094265,21339.0,21338.0,3.21916746]
[1673990668473,0.0094265,21339.0,21338.0,3.4433268]
[1673990670547,0.0094265,21339.0,21338.0,3.21916746]
[1673990670799,0.0094265,21339.0,21338.0,3.44340495]
[1673990671069,0.0094265,21339.0,21338.0,2.78145903]
[1673990671315,0.0094265,21339.0,21338.0,2.29238214]
[1673990671795,0.0094265,21339.0,21338.0,2.46056466]
[1673990672056,0.0094265,21339.0,21338.0,2.57257095]
[1673990672303,0.0094265,21339.0,21338.0,2.87257095]
[1673990672814,0.96348237,21399.0,21338.0,2.87257095]
[1673990673072,0.96348237,21399.0,21340.0,0.11221182]
[1673990673073,0.00099374,21343.0,21340.0,0.11221182]
[1673990673333,0.0749,21347.0,21340.0,0.11221182]
[1673990673334,0.0749,21347.0,21341.0,0.6]
[1673990673580,1.011826,21347.0,21342.0,1.28634295]
[1673990673859,1.011826,21347.0,21343.0,0.5998788]
[1673990674179,1.01281447,21347.0,21344.0,0.19954958]
[1673990674401,1.01281447,21347.0,21344.0,0.39027553]
[1673990674660,0.320894,21346.0,21344.0,0.19954958]